bitfinex/quotes_SOLUSD_20240822
["timestamp","ask_amount","ask_price","bid_price","bid_amount"]
[1724302013129,10.65,142.26,142.17,20.0]
[1724302013755,10.65,142.26,142.18,0.25098]
[1724302016247,15.2017,142.27,142.18,57.30723549]
[1724302017446,15.2017,142.27,142.19,20.0]
[1724302017646,15.2017,142.27,142.2,45.25098]
[1724302018366,15.2017,142.27,142.21,1.40600401]
[1724302018542,15.2017,142.27,142.22,0.25098]
[1724302018947,15.2017,142.27,142.22,0.12549]
[1724302019142,15.2017,142.27,142.22,0.25098]
[1724302019351,15.2017,142.27,142.22,1.6568965]
[1724302020065,15.2017,142.27,142.22,46.6568965]
[1724302020972,16.1061,142.31,142.24,10.65]
[1724302021178,16.1061,142.31,142.25,1.65651125]
[1724302021473,16.1061,142.31,142.25,46.65651125]
[1724302022053,16.1061,142.31,142.25,45.25098]
[1724302022258,16.1061,142.31,142.25,0.25098]
[1724302022665,16.1061,142.31,142.26,0.25098]
[1724302022875,16.1061,142.31,142.24,65.25098]
[1724302023278,16.1061,142.31,142.25,1.40560481]
[1724302023579,16.1061,142.31,142.26,0.25098]
[1724302023782,16.1061,142.31,142.27,1.40557972]
[1724302024092,16.1061,142.31,142.28,1.65638111]
[1724302024268,16.1061,142.31,142.28,0.12549]
[1724302026987,16.1061,142.31,142.26,1.53099702]
[1724302027178,16.1061,142.31,142.27,0.12549]
[1724302030568,26.7561,142.31,142.27,0.12549]
[1724302030770,26.7561,142.31,142.26,0.12549]
[1724302030980,26.7561,142.31,142.25,1.65656054]
[1724302031486,26.7561,142.31,142.25,21.65656054]
[1724302031679,26.7561,142.31,142.25,20.25098]
[1724302032185,26.7561,142.31,142.26,1.40559134]
[1724302034090,26.7561,142.31,142.27,1.53107406]
[1724302034091,16.1061,142.31,142.27,1.53107406]
[1724302035078,16.1061,142.31,142.27,0.12549]
[1724302036700,16.1061,142.31,142.27,0.25098]
[1724302039105,16.1061,142.31,142.27,0.12549]
[1724302039407,26.7561,142.31,142.27,0.12549]
[1724302039606,26.7561,142.31,142.26,0.25098]
[1724302040105,26.7561,142.31,142.27,0.12549]
[1724302040395,26.7561,142.31,142.25,45.25098]
[1724302040592,26.7561,142.31,142.26,1.40554684]
[1724302040785,26.7561,142.31,142.27,0.12549]
[1724302041110,26.7561,142.31,142.27,1.53103693]
[1724302042207,26.7561,142.31,142.27,0.12549]
[1724302042407,16.1061,142.31,142.27,1.5310384]
[1724302043290,16.1061,142.31,142.27,0.12549]
[1724302043678,16.1061,142.31,142.27,1.53103846]
[1724302043877,16.1061,142.31,142.27,1.40554846]
[1724302044787,16.1061,142.31,142.26,1.53104203]
[1724302045485,26.7561,142.31,142.26,1.53104203]
[1724302045995,26.7561,142.31,142.26,0.12549]
[1724302047099,26.7561,142.31,142.25,0.25098]
[1724302047281,10.65,142.29,142.24,5.41793001]
[1724302047477,10.65,142.29,142.24,5.1672726]
[1724302048706,10.65,142.29,142.24,5.1674986]
[1724302050193,10.65,142.29,142.25,5.1674986]
[1724302050392,10.65,142.29,142.24,5.1674986]
[1724302050594,10.65,142.29,142.25,5.1674986]
[1724302050788,10.65,142.29,142.24,5.1674986]
[1724302050990,10.65,142.29,142.25,5.1674986]
[1724302051300,10.65,142.29,142.24,5.1674986]
[1724302051500,10.65,142.29,142.25,5.1674986]
[1724302051703,10.65,142.29,142.23,20.12549]
[1724302051881,16.1983,142.27,142.24,0.12549]
[1724302052087,16.1983,142.27,142.19,30.65]
[1724302052289,26.8483,142.27,142.2,45.25098]
[1724302052601,26.8483,142.27,142.21,20.0]
[1724302052801,26.8483,142.27,142.22,0.25098]
[1724302055326,16.1983,142.27,142.22,1.65690849]
[1724302056012,16.1983,142.27,142.22,0.25098]
[1724302058213,16.1983,142.27,142.22,45.25098]
[1724302063001,16.1983,142.27,142.22,0.25098]
[1724302063398,16.1983,142.27,142.21,45.25098]
[1724302063725,16.1983,142.27,142.21,0.25098]
[1724302064017,16.1983,142.27,142.21,20.25098]
[1724302066813,16.1983,142.27,142.22,1.40593543]
[1724302067017,16.1983,142.27,142.23,0.12549]
[1724302067730,16.1983,142.27,142.23,1.65679083]
[1724302072724,16.1983,142.27,142.23,12.30679083]
[1724302073104,16.1983,142.27,142.23,10.90098]
[1724302073511,16.1983,142.27,142.24,1.40571593]
[1724302073725,16.1983,142.27,142.25,0.25098]
[1724302073914,16.1983,142.27,142.25,0.12549]
[1724302074112,16.1983,142.27,142.24,0.12549]
[1724302074314,16.1983,142.27,142.24,0.25098]
[1724302075228,16.1983,142.27,142.24,1.65670149]
[1724302077837,16.1983,142.27,142.24,46.65670149]
[1724302079023,16.1983,142.27,142.24,45.25098]
[1724302080428,7.33940278,142.36,142.24,45.25098]
[1724302080429,15.3923,142.33,142.24,10.90098]
[1724302080640,15.3923,142.33,142.26,10.65]
[1724302080803,15.3923,142.33,142.27,0.25098]
[1724302081006,15.3923,142.33,142.27,45.25098]
[1724302082304,26.0423,142.33,142.27,45.25098]
[1724302082524,26.0423,142.33,142.27,0.25098]
[1724302082713,10.65,142.31,142.26,0.25098]
[1724302086508,22.709,142.26,142.18,7.34470472]
[1724302086808,22.709,142.26,142.16,30.65]
[1724302087409,22.709,142.26,142.15,20.19064499]
[1724302087610,22.709,142.26,142.16,10.65]
[1724302087611,10.65,142.25,142.16,10.65]
[1724302088448,10.65,142.25,142.17,20.0]
[1724302088945,10.65,142.25,142.18,45.0]
[1724302089143,10.65,142.25,142.19,20.25098]
[1724302090922,22.709,142.26,142.19,20.25098]
[1724302091331,22.709,142.26,142.2,45.0]
[1724302091644,22.709,142.26,142.21,0.25098]
[1724302094220,22.709,142.26,142.2,43.75098]
[1724302095142,10.65,142.25,142.19,20.0]
[1724302095364,10.65,142.25,142.17,20.0]
[1724302096615,10.65,142.25,142.18,45.25098]
[1724302096819,10.65,142.25,142.19,20.0]
[1724302097055,10.65,142.25,142.2,0.25098]
[1724302099345,22.709,142.26,142.2,0.25098]
[1724302104645,22.709,142.26,142.2,45.25098]
[1724302106734,22.709,142.26,142.2,55.90098]
[1724302107225,22.709,142.26,142.21,20.0]
[1724302107425,22.709,142.26,142.22,45.25098]
[1724302108339,22.709,142.26,142.22,55.90098]
[1724302108655,22.709,142.26,142.23,20.0]
[1724302108837,22.709,142.26,142.24,0.12549]
[1724302109029,22.709,142.26,142.24,0.25098]
[1724302111931,22.709,142.26,142.24,5.41440617]
[1724302112126,22.709,142.26,142.24,0.25098]
[1724302112540,22.709,142.26,142.24,5.41440617]
[1724302113532,22.709,142.26,142.24,0.25098]
[1724302113856,22.709,142.26,142.24,5.41565399]
[1724302114338,22.709,142.26,142.24,0.25098]
[1724302114735,22.709,142.26,142.24,5.41565399]
[1724302116052,22.709,142.26,142.24,0.25098]
[1724302116255,22.709,142.26,142.24,5.41533812]
[1724302117039,22.709,142.26,142.24,5.41494383]
[1724302118055,16.2955,142.26,142.24,5.41494383]
[1724302120459,16.2955,142.26,142.24,0.25098]
[1724302120649,6.4196,142.29,142.25,5.16310437]
[1724302120850,6.4196,142.29,142.26,1.65649399]
[1724302122069,6.4196,142.29,142.26,0.25098]
[1724302124275,6.4196,142.29,142.27,0.25098]
[1724302124456,6.4196,142.29,142.25,5.41397706]
[1724302127684,6.4196,142.29,142.25,5.41443796]
[1724302130776,6.4196,142.29,142.25,0.25098]
[1724302131167,6.4196,142.29,142.25,5.41443796]
[1724302131764,6.4196,142.29,142.25,0.25098]
[1724302133385,6.4196,142.29,142.25,1.65655964]
[1724302134278,16.1987,142.3,142.25,1.65655964]
[1724302134860,6.302,142.33,142.26,10.65]
[1724302135061,6.302,142.33,142.28,10.65]
[1724302135365,6.302,142.33,142.29,1.65616933]
[1724302135692,6.302,142.33,142.3,1.40518435]
[1724302136066,6.302,142.33,142.29,0.25098]
[1724302136267,6.302,142.33,142.28,0.25098]
[1724302138287,6.302,142.33,142.28,1.53093457]
[1724302138490,6.302,142.33,142.28,0.12549]
[1724302138667,6.302,142.33,142.28,0.25098]
[1724302141377,10.65,142.32,142.2,33.42217167]
[1724302141583,10.65,142.3,142.21,10.65]
[1724302142182,15.7813,142.29,142.21,10.65]
[1724302143374,15.7813,142.29,142.22,65.25098]
[1724302145884,15.7813,142.29,142.23,1.40574377]
[1724302146099,15.7813,142.29,142.24,0.25098]
[1724302147575,15.7813,142.29,142.24,20.25098]
[1724302147782,15.7813,142.29,142.25,1.40562192]
[1724302147990,15.7813,142.29,142.26,0.25098]
[1724302149809,15.7813,142.29,142.26,1.40563537]
[1724302150300,15.7813,142.29,142.25,0.25098]
[1724302151112,15.7813,142.29,142.24,0.25098]
[1724302151603,15.7813,142.29,142.24,1.65672517]
[1724302151777,15.7813,142.29,142.24,0.25098]
[1724302152706,15.7813,142.29,142.24,1.65672238]
[1724302153208,15.7813,142.29,142.24,0.25098]
[1724302153590,15.7813,142.29,142.24,1.65666065]
[1724302154405,15.7813,142.29,142.24,46.65666065]
[1724302156693,6.302,142.33,142.24,46.65666065]
[1724302156694,22.2527,142.33,142.25,30.65]
[1724302156902,22.2527,142.33,142.26,46.65632653]
[1724302157217,22.2527,142.33,142.27,1.4053683]
[1724302157519,22.2527,142.33,142.28,0.25098]
[1724302158321,22.2527,142.33,142.29,0.12549]
[1724302158622,22.2527,142.33,142.27,0.25098]
[1724302158995,22.2527,142.33,142.27,1.6563488]
[1724302159196,15.9507,142.33,142.27,32.3063488]
[1724302159589,15.9507,142.33,142.28,45.0]
[1724302159791,32.4316,142.36,142.29,1.65616192]
[1724302159991,21.7816,142.36,142.3,1.40502909]
[1724302160232,21.7816,142.36,142.31,0.25098]
[1724302161113,15.2579,142.36,142.31,0.25098]
[1724302161493,15.2579,142.36,142.31,1.65594579]
[1724302161802,15.2579,142.36,142.31,0.25098]
[1724302161991,15.2579,142.36,142.31,1.65594633]
[1724302162196,15.2579,142.36,142.31,0.25098]
[1724302163897,15.2579,142.36,142.31,1.65601475]
[1724302164098,15.2579,142.36,142.31,0.25098]
[1724302164921,15.2579,142.36,142.31,1.65601873]
[1724302166109,15.2579,142.36,142.31,0.25098]
[1724302168023,15.2579,142.36,142.3,21.65616687]
[1724302168228,15.2579,142.36,142.3,0.25098]
[1724302169229,15.2579,142.36,142.29,0.25098]
[1724302169729,15.2579,142.36,142.29,20.25098]
[1724302169919,15.2579,142.36,142.3,45.0]
[1724302170123,15.2579,142.36,142.31,1.65605725]
[1724302172420,15.2579,142.36,142.31,0.25098]
[1724302173012,15.2579,142.36,142.31,1.65605916]
[1724302173414,15.2579,142.36,142.31,0.25098]
[1724302175534,15.2579,142.36,142.31,1.65605637]
[1724302175931,15.2579,142.36,142.31,0.25098]
[1724302176811,15.2579,142.36,142.31,1.65605897]
[1724302177011,15.2579,142.36,142.31,0.25098]
[1724302178036,15.2579,142.36,142.31,1.65605858]
[1724302178438,15.2579,142.36,142.31,0.25098]
[1724302178928,15.2579,142.36,142.31,1.65606044]
[1724302181538,10.65,142.37,142.31,1.65606044]
[1724302182112,33.3234,142.39,142.31,1.65606044]
[1724302182313,16.1497,142.39,142.32,10.65]
[1724302182616,16.1497,142.39,142.33,1.65578439]
[1724302183226,16.1497,142.39,142.33,46.65578439]
[1724302184443,32.934,142.43,142.34,10.65]
[1724302184736,32.934,142.43,142.35,1.65561866]
[1724302184941,22.284,142.43,142.35,1.65561866]
[1724302185117,10.65,142.41,142.35,0.25098]
[1724302187226,10.65,142.41,142.35,0.12549]
[1724302187721,10.65,142.41,142.34,0.25098]
[1724302188542,10.65,142.39,142.34,0.12549]
[1724302188916,10.65,142.39,142.33,0.25098]
[1724302189114,10.65,142.39,142.33,1.65589428]
[1724302189622,10.65,142.39,142.33,0.25098]
[1724302191924,10.65,142.39,142.33,1.65590366]
[1724302192112,22.284,142.43,142.33,1.65590366]
[1724302192320,10.65,142.41,142.33,1.65590366]
[1724302192753,10.65,142.41,142.33,46.65590366]
[1724302193644,10.65,142.41,142.33,45.25098]
[1724302195155,7.34434811,142.42,142.33,55.90098]
[1724302195314,17.99434811,142.42,142.34,1.40478884]
[1724302195521,17.99434811,142.42,142.33,55.90098]
[1724302195522,10.65,142.4,142.35,0.12549]
[1724302195847,10.65,142.4,142.33,45.25098]
[1724302196159,10.65,142.4,142.33,0.25098]
[1724302197972,10.65,142.38,142.33,0.12549]
[1724302198321,10.65,142.38,142.32,0.25098]
[1724302198631,10.65,142.38,142.31,15.6954]
[1724302199264,10.65,142.38,142.31,20.84275801]
[1724302199557,10.65,142.38,142.32,1.40502069]
[1724302199720,10.65,142.38,142.32,1.53051069]
[1724302200625,10.65,142.38,142.32,0.12549]
[1724302200829,10.65,142.38,142.32,0.25098]
[1724302201547,10.65,142.38,142.32,1.65600164]
[1724302202152,10.65,142.38,142.32,0.25098]
[1724302202355,10.65,142.38,142.32,5.39833801]
[1724302204252,10.65,142.38,142.33,5.14735801]
[1724302204575,10.65,142.38,142.32,5.39833801]
[1724302205152,10.65,142.38,142.32,5.27284801]
[1724302205339,10.65,142.36,142.32,5.14735801]
[1724302205539,10.65,142.36,142.31,5.14735801]
[1724302205741,10.65,142.34,142.32,5.14735801]
[1724302205969,10.65,142.34,142.29,5.14735801]
[1724302206558,10.65,142.36,142.3,5.14735801]
[1724302206855,10.65,142.36,142.31,1.40534566]
[1724302207056,10.65,142.36,142.3,5.14735801]
[1724302207254,10.65,142.36,142.3,0.12549]
[1724302207940,10.65,142.36,142.3,1.53075867]
[1724302208342,17.0904,142.38,142.31,1.40516669]
[1724302208546,10.65,142.38,142.32,0.25098]
[1724302208759,10.65,142.38,142.32,0.12549]
[1724302209148,10.65,142.38,142.31,0.25098]
[1724302209340,10.65,142.38,142.31,6.80332112]
[1724302209541,10.65,142.38,142.31,1.65605705]
[1724302209861,10.65,142.38,142.31,6.80332112]
[1724302210041,10.65,142.38,142.31,1.65605705]
[1724302210241,10.65,142.38,142.31,5.39824407]
[1724302210444,15.2526,142.39,142.32,1.40503087]
[1724302210654,25.9026,142.39,142.33,0.12549]
[1724302211849,10.65,142.39,142.32,0.12549]
[1724302212159,10.65,142.39,142.32,5.27052308]
[1724302212356,10.65,142.39,142.33,1.53041541]
[1724302212663,10.65,142.39,142.34,0.12549]
[1724302213266,10.65,142.39,142.33,0.25098]
[1724302214355,10.65,142.39,142.32,0.25098]
[1724302214554,10.65,142.39,142.31,6.1355]
[1724302214740,10.65,142.37,142.3,5.14503308]
[1724302215345,10.65,142.37,142.29,10.29290605]
[1724302215664,10.65,142.37,142.3,25.14503308]
[1724302216044,10.65,142.37,142.31,0.25098]
[1724302216234,10.65,142.38,142.31,6.80115019]
[1724302216640,10.65,142.38,142.32,5.14503308]
[1724302216865,10.65,142.38,142.33,0.12549]
[1724302217039,10.65,142.38,142.31,5.39601308]
[1724302217240,10.65,142.38,142.32,6.55006377]
[1724302217442,10.65,142.38,142.33,0.12549]
[1724302218043,10.65,142.38,142.32,0.12549]
[1724302218450,10.65,142.38,142.32,5.26713719]
[1724302218853,10.65,142.38,142.32,0.12549]
[1724302219364,10.65,142.38,142.32,5.26713719]
[1724302219749,10.65,142.38,142.32,0.12549]
[1724302221953,10.65,142.38,142.31,5.39262719]
[1724302222141,10.65,142.38,142.31,0.25098]
[1724302222347,10.65,142.38,142.31,5.39262719]
[1724302222578,10.65,142.38,142.31,0.25098]
[1724302223554,10.65,142.38,142.31,0.12549]
[1724302223764,10.65,142.36,142.3,5.14164719]
[1724302223959,10.65,142.34,142.29,5.14416618]
[1724302224276,10.65,142.34,142.27,6.1977]
[1724302224462,10.65,142.34,142.29,5.14412226]
[1724302225050,10.65,142.36,142.29,5.14412226]
[1724302225257,10.65,142.36,142.28,20.49702226]
[1724302225456,10.65,142.36,142.29,0.12549]
[1724302225753,10.65,142.36,142.29,5.26961226]
[1724302225965,10.65,142.36,142.3,0.12549]
[1724302226570,10.65,142.36,142.3,5.26961226]
[1724302226761,10.65,142.36,142.31,0.12549]
[1724302227474,10.65,142.36,142.3,5.39510226]
[1724302227673,10.65,142.36,142.3,0.25098]
[1724302228171,10.65,142.36,142.29,5.14412226]
[1724302228376,10.65,142.34,142.28,20.49702226]
[1724302228583,10.65,142.34,142.28,15.3529]
[1724302228759,10.65,142.34,142.28,20.49702226]
[1724302229377,10.65,142.34,142.28,15.3529]
[1724302229974,10.65,142.34,142.28,20.49702226]
[1724302230287,10.65,142.32,142.25,15.6954]
[1724302231281,10.65,142.3,142.25,15.6954]
[1724302233279,10.65,142.32,142.25,15.6954]
[1724302235175,10.65,142.32,142.26,0.25098]
[1724302237565,10.65,142.32,142.26,0.12549]
[1724302237777,10.65,142.3,142.25,15.6954]
[1724302239673,10.65,142.3,142.24,0.12549]
[1724302239970,10.65,142.3,142.24,20.12549]
[1724302240492,10.65,142.3,142.24,0.12549]
[1724302240683,10.65,142.28,142.22,15.6954]
[1724302240985,10.65,142.26,142.22,15.6954]
[1724302241196,16.4674,142.3,142.22,15.6954]
[1724302241197,10.65,142.28,142.22,15.6954]
[1724302242658,10.65,142.28,142.23,0.12549]
[1724302244284,16.4674,142.3,142.23,0.25098]
[1724302244285,27.1174,142.3,142.23,0.25098]
[1724302244482,27.1174,142.3,142.23,0.12549]
[1724302244483,10.65,142.28,142.23,0.12549]
[1724302245062,10.65,142.3,142.23,1.65697329]
[1724302245568,29.73091192,142.34,142.23,1.65697329]
[1724302245569,29.73091192,142.34,142.24,10.65]
[1724302245785,10.65,142.32,142.25,1.65670508]
[1724302246366,10.65,142.32,142.25,0.25098]
[1724302246563,29.73091192,142.34,142.26,0.12549]
[1724302246866,10.65,142.33,142.24,10.90098]
[1724302247671,29.73091192,142.34,142.24,0.25098]
[1724302247872,10.65,142.32,142.24,65.25098]
[1724302248076,10.65,142.32,142.24,20.25098]
[1724302248591,10.65,142.32,142.25,1.40573724]
[1724302248796,10.65,142.32,142.24,20.25098]
[1724302249374,10.65,142.33,142.25,1.4057371]
[1724302249679,10.65,142.31,142.24,20.25098]
[1724302252486,10.65,142.29,142.23,6.4735]
[1724302253778,10.65,142.29,142.22,15.6954]
[1724302253984,10.65,142.29,142.23,0.12549]
[1724302254281,10.65,142.27,142.22,15.6954]
[1724302257893,10.65,142.27,142.2,6.4228]
[1724302258088,10.65,142.27,142.21,0.12549]
[1724302258808,10.65,142.23,142.18,15.6289]
[1724302259113,45.0,142.26,142.18,15.6289]
[1724302259276,10.65,142.24,142.18,15.6289]
[1724302260399,45.0,142.26,142.18,15.6289]
[1724302260577,10.65,142.25,142.19,0.12549]
[1724302260896,10.65,142.25,142.18,15.6289]
[1724302263103,10.65,142.25,142.19,1.53191898]
[1724302263486,10.65,142.25,142.19,0.12549]
[1724302263689,10.65,142.25,142.19,1.53185188]
[1724302265879,10.65,142.25,142.19,0.12549]
[1724302270882,10.65,142.23,142.18,15.6289]
[1724302277692,10.65,142.19,142.16,5.15988262]
[1724302277886,10.65,142.19,142.14,5.15988262]
[1724302278306,10.65,142.19,142.13,22.2773]
[1724302278505,10.65,142.19,142.14,20.0]
[1724302278720,10.65,142.19,142.14,25.15988262]
[1724302279092,10.65,142.19,142.15,5.16242058]
[1724302279507,10.65,142.19,142.14,25.16242058]
[1724302280226,45.0,142.22,142.14,25.16242058]
[1724302280389,10.65,142.2,142.14,25.16242058]
[1724302286004,10.65,142.2,142.14,26.56924186]
[1724302286203,22.5414,142.24,142.15,1.53231119]
[1724302286394,10.65,142.22,142.15,0.12549]
[1724302286596,15.511,142.24,142.15,1.65764465]
[1724302286925,10.65,142.23,142.15,6.82006523]
[1724302287091,10.65,142.23,142.15,5.41340058]
[1724302287732,15.511,142.24,142.15,5.41340058]
[1724302287925,10.65,142.23,142.15,6.82006369]
[1724302288293,15.511,142.24,142.16,1.40666188]
[1724302288515,26.161,142.24,142.17,0.25098]
[1724302290127,26.161,142.24,142.16,0.25098]
[1724302291013,10.65,142.22,142.16,0.25098]
[1724302295098,10.65,142.22,142.15,5.15893309]
[1724302295299,10.65,142.22,142.15,5.16108225]
[1724302295717,10.65,142.22,142.15,6.56783599]
[1724302295935,10.65,142.22,142.16,0.25098]
[1724302296502,10.65,142.22,142.15,0.25098]
[1724302297223,10.65,142.22,142.15,0.12549]
[1724302298323,10.65,142.2,142.13,22.2773]
[1724302300011,10.65,142.2,142.13,23.6842366]
[1724302300233,10.65,142.2,142.14,0.12549]
[1724302300549,10.65,142.22,142.14,0.12549]
[1724302300832,10.65,142.22,142.14,1.65780036]
[1724302302527,10.65,142.22,142.14,0.25098]
[1724302302713,10.65,142.2,142.14,0.25098]
[1724302307723,10.65,142.2,142.14,0.12549]
[1724302307925,10.65,142.2,142.13,22.2773]
[1724302308641,10.65,142.2,142.14,0.12549]
[1724302308847,10.65,142.2,142.14,1.53242788]
[1724302309527,22.86572363,142.24,142.15,1.40686779]
[1724302309750,20.0,142.23,142.16,0.12549]
[1724302310059,10.65,142.22,142.14,0.12549]
[1724302310238,10.65,142.22,142.14,0.25098]
[1724302311562,10.65,142.22,142.14,1.65775891]
[1724302312549,10.65,142.22,142.14,0.25098]
[1724302313041,10.65,142.22,142.14,1.65774982]
[1724302313851,10.65,142.22,142.14,0.25098]
[1724302314663,10.65,142.2,142.14,0.12549]
[1724302316141,10.65,142.2,142.13,22.2773]
[1724302317969,10.65,142.18,142.13,22.2773]
[1724302328468,10.65,142.2,142.13,22.2773]
[1724302331277,10.65,142.2,142.13,15.6954]
[1724302332256,10.65,142.18,142.13,15.6954]
[1724302334667,10.65,142.18,142.1,21.6589]
[1724302334872,10.65,142.18,142.11,20.12549]
[1724302335263,10.65,142.16,142.11,20.0]
[1724302335464,7.0324,142.2,142.1,15.0014]
[1724302335465,10.65,142.14,142.1,15.0014]
[1724302336747,7.0334,142.18,142.1,15.0014]
[1724302336954,45.0,142.17,142.1,15.0014]
[1724302337160,10.65,142.16,142.1,15.0014]
[1724302337451,7.35689858,142.19,142.11,1.40729834]
[1724302337651,10.65,142.18,142.1,15.0014]
[1724302337957,10.65,142.18,142.11,0.12549]
[1724302338266,10.65,142.18,142.11,1.53264883]
[1724302338676,10.65,142.19,142.12,0.12549]
[1724302341293,10.65,142.19,142.11,20.12549]
[1724302342271,10.65,142.19,142.12,1.40707038]
[1724302342470,7.3543649,142.22,142.12,8.05227038]
[1724302342773,55.65,142.21,142.13,0.25098]
[1724302342974,10.65,142.21,142.13,10.90098]
[1724302343182,10.65,142.23,142.14,15.6954]
[1724302343359,20.0,142.22,142.15,0.12549]
[1724302343954,10.65,142.22,142.15,0.12549]
[1724302344457,45.0,142.21,142.15,0.12549]
[1724302347468,45.0,142.21,142.15,1.53226214]
[1724302348561,10.65,142.22,142.15,1.53226214]
[1724302348760,10.65,142.22,142.15,21.53226214]
[1724302350085,10.65,142.22,142.15,20.12549]
[1724302351289,45.0,142.21,142.15,20.12549]
[1724302352675,45.0,142.21,142.15,21.53225059]
[1724302354414,45.0,142.21,142.15,20.12549]
[1724302355313,10.65,142.22,142.15,21.5322524]
[1724302356707,18.00353144,142.24,142.16,6.13559]
[1724302356902,45.0,142.23,142.17,1.53202982]
[1724302357079,18.00353144,142.24,142.17,1.53202982]
[1724302357279,7.35353144,142.24,142.17,12.18202982]
[1724302357499,7.35353144,142.24,142.18,1.40649483]
[1724302358103,7.35353144,142.24,142.18,17.10189483]
[1724302358487,45.0,142.23,142.18,17.10189483]
[1724302359798,7.35353144,142.24,142.18,17.10189483]
[1724302360000,7.35353144,142.24,142.19,0.12549]
[1724302360585,7.35353144,142.24,142.18,15.6954]
[1724302360791,45.0,142.23,142.18,15.6954]
[1724302361181,55.65,142.23,142.18,15.6954]
[1724302363818,7.35353144,142.24,142.19,10.65]
[1724302364105,261.2277,142.3,142.21,10.65]
[1724302364279,408.3925,142.32,142.22,1.40610704]
[1724302364280,415.0835863,142.32,142.22,1.40610704]
[1724302364482,10.65,142.3,142.22,16.87100704]
[1724302364710,422.1101863,142.32,142.22,16.87100704]
[1724302365004,10.65,142.3,142.22,16.87100704]
[1724302365216,14.03402611,142.32,142.23,30.77549]
[1724302365394,24.7569902,142.35,142.25,17.0465]
[1724302365395,15.3136,142.35,142.25,17.0465]
[1724302365585,15.3136,142.35,142.26,1.53112053]
[1724302365586,25.9636,142.35,142.26,1.53112053]
[1724302365908,10.65,142.3,142.25,6.3965]
[1724302366082,7.0254,142.34,142.23,20.0]
[1724302366083,10.65,142.28,142.23,20.0]
[1724302366282,16.52000097,142.34,142.24,0.12549]
[1724302366506,10.65,142.29,142.24,0.25098]
[1724302367208,10.65,142.29,142.24,0.12549]
[1724302368083,10.65,142.29,142.23,20.0]
[1724302368287,10.65,142.29,142.22,15.4649]
[1724302368288,10.65,142.25,142.22,15.4649]
[1724302368484,15.6414,142.3,142.18,15.4713]
[1724302368710,10.65,142.22,142.18,15.4713]
[1724302368921,10.65,142.24,142.18,15.4713]
[1724302369714,65.12549,142.29,142.19,1.40633625]
[1724302369892,10.65,142.24,142.19,1.40633625]
[1724302371289,10.65,142.26,142.2,0.12549]
[1724302373521,10.65,142.26,142.2,6.29238]
[1724302373698,45.0,142.29,142.21,1.40608635]
[1724302373699,10.65,142.28,142.21,1.40608635]
[1724302373904,10.65,142.28,142.22,0.12549]
[1724302375115,10.65,142.28,142.22,0.25098]
[1724302375493,10.65,142.28,142.22,1.65694201]
[1724302375694,10.65,142.28,142.22,0.25098]
[1724302375998,10.65,142.28,142.22,1.65694206]
[1724302376519,10.65,142.28,142.22,0.25098]
[1724302376814,10.65,142.28,142.22,1.53145215]
[1724302378016,10.65,142.28,142.22,0.12549]
[1724302378196,10.65,142.28,142.22,0.25098]
[1724302378518,10.65,142.28,142.22,1.65696213]
[1724302378719,10.65,142.28,142.22,0.25098]